bitfinex/quotes_BTCUSD_20250513
["timestamp","ask_amount","ask_price","bid_price","bid_amount"]
[1747146070784,0.78128149,103260.0,103250.0,0.002]
[1747146070989,1.23715347,103260.0,103250.0,0.002]
[1747146071189,0.00968476,103250.0,103240.0,0.222781]
[1747146071393,0.232444,103250.0,103240.0,0.2130954]
[1747146071596,0.20340915,103240.0,103230.0,0.34977257]
[1747146071851,0.19372336,103240.0,103230.0,0.34977257]
[1747146072289,0.20342922,103230.0,103220.0,0.20344809]
[1747146072501,0.22280258,103230.0,103220.0,0.56282333]
[1747146072943,0.01937336,103230.0,103220.0,0.23251071]
[1747146073166,0.0193728,103230.0,103220.0,0.57545267]
[1747146073381,0.02905953,103230.0,103220.0,0.57545267]
[1747146073593,0.03874644,103230.0,103220.0,0.57545267]
[1747146074046,0.24081209,103260.0,103240.0,0.21309531]
[1747146074272,0.0004854,103260.0,103250.0,0.2130743]
[1747146074493,0.2329069,103260.0,103250.0,0.21602175]
[1747146074707,0.21353954,103260.0,103250.0,0.19665158]
[1747146074904,0.21353954,103260.0,103250.0,0.20633681]
[1747146075189,0.20385553,103260.0,103250.0,0.00294698]
[1747146075624,0.70616836,103260.0,103250.0,0.00294698]
[1747146076065,0.70620836,103260.0,103250.0,0.00298698]
[1747146076964,0.80026591,103260.0,103250.0,0.00298698]
[1747146077178,0.83096591,103260.0,103250.0,0.00298698]
[1747146077364,0.82996591,103260.0,103250.0,0.00298698]
[1747146077497,0.83096591,103260.0,103250.0,0.00298698]
[1747146077690,0.37609393,103260.0,103250.0,0.00298698]
[1747146077894,0.83621776,103260.0,103250.0,0.00298698]
[1747146078340,0.23779553,103260.0,103250.0,0.00298698]
[1747146080980,0.69366751,103260.0,103250.0,0.00298698]
[1747146081186,0.72426751,103260.0,103250.0,0.00298698]
[1747146082122,0.21557954,103260.0,103250.0,0.19669158]
[1747146082326,0.21557954,103260.0,103250.0,0.20637671]
[1747146082532,0.21557954,103260.0,103250.0,0.21606175]
[1747146082665,0.19621124,103260.0,103250.0,0.21606175]
[1747146082908,0.19621124,103260.0,103250.0,0.00298698]
[1747146083178,0.72257106,103260.0,103250.0,0.00298698]
[1747146083398,0.86492131,103260.0,103250.0,0.00298698]
[1747146084298,0.37006149,103260.0,103250.0,0.00298698]
[1747146084759,0.33956149,103260.0,103250.0,0.00298698]
[1747146085206,0.19621124,103260.0,103250.0,0.00298698]
[1747146085642,0.19621124,103260.0,103250.0,0.21606156]
[1747146085867,0.21557972,103260.0,103250.0,0.20637671]
[1747146086089,0.21557972,103260.0,103250.0,0.22574651]
[1747146086312,0.21557972,103260.0,103250.0,0.21606175]
[1747146086763,0.21557954,103260.0,103250.0,0.21606175]
[1747146086994,0.22526336,103260.0,103250.0,0.22574669]
[1747146087427,0.21557954,103260.0,103250.0,0.21606175]
[1747146087873,0.21557954,103260.0,103250.0,0.34242551]
[1747146087874,0.01220912,103260.0,103250.0,0.34242551]
[1747146088088,0.0025254,103260.0,103250.0,3.12675149]
[1747146088314,0.0025254,103260.0,103250.0,3.34815149]
[1747146088736,0.0015254,103260.0,103250.0,3.34815149]
[1747146089700,0.0005254,103260.0,103250.0,3.34815149]
[1747146090143,0.0005254,103260.0,103250.0,3.36769234]
[1747146090392,0.0005254,103260.0,103250.0,3.37669234]
[1747146090623,0.0005254,103260.0,103250.0,3.37569234]
[1747146090846,0.0005254,103260.0,103250.0,3.37769234]
[1747146091033,0.0005254,103260.0,103250.0,3.37469234]
[1747146091377,0.0005254,103260.0,103250.0,3.37769234]
[1747146091599,0.0005254,103260.0,103250.0,3.37569234]
[1747146092035,0.0005254,103260.0,103250.0,3.38069234]
[1747146093214,0.0005254,103260.0,103250.0,3.37769234]
[1747146093626,0.0005254,103260.0,103250.0,3.38269234]
[1747146093828,0.0005254,103260.0,103250.0,4.63316634]
[1747146094731,0.00967941,103310.0,103290.0,0.5529915]
[1747146094957,0.22263106,103310.0,103300.0,0.21581944]
[1747146095170,0.0193577,103310.0,103300.0,0.6724887]
[1747146095392,0.21292946,103320.0,103310.0,0.21293412]
[1747146095625,0.22260812,103320.0,103310.0,0.21293412]
[1747146095850,0.22260812,103320.0,103310.0,0.21579159]
[1747146096272,0.22260812,103320.0,103310.0,0.22586054]
[1747146096947,0.22260812,103320.0,103310.0,0.21618122]
[1747146097156,0.21293021,103320.0,103310.0,0.23554014]
[1747146097591,0.21293021,103320.0,103310.0,0.2500977]
[1747146098007,0.21493021,103320.0,103310.0,0.2500977]
[1747146098245,0.20525202,103320.0,103310.0,0.2500977]
[1747146099289,0.01167819,103320.0,103310.0,0.25977702]
[1747146099545,0.01167801,103320.0,103310.0,0.58812499]
[1747146099773,0.0213562,103320.0,103310.0,0.3577908]
[1747146099993,0.03103458,103320.0,103310.0,0.56104541]
[1747146100206,0.04071306,103320.0,103310.0,0.57072492]
[1747146100416,0.04071306,103320.0,103310.0,0.58077833]
[1747146101513,0.04071306,103320.0,103310.0,0.58077852]
[1747146101730,0.04071306,103320.0,103310.0,0.58077795]
[1747146101955,0.24396508,103320.0,103310.0,0.58077805]
[1747146102187,0.23428707,103320.0,103310.0,0.55174065]
[1747146102400,0.04071362,103320.0,103310.0,0.56141969]
[1747146102850,0.05039228,103320.0,103310.0,0.56141969]
[1747146103737,0.24396564,103320.0,103310.0,0.56141969]
[1747146103951,0.23428745,103320.0,103310.0,0.56141988]
[1747146104168,0.02135686,103320.0,103310.0,0.58077805]
[1747146104384,0.03103543,103320.0,103310.0,0.58077758]
[1747146104605,0.22460888,103320.0,103310.0,0.57109864]
[1747146105057,0.02139686,103320.0,103310.0,0.57109864]
[1747146105290,0.23432745,103320.0,103310.0,0.57113864]
[1747146106623,0.23432745,103320.0,103310.0,0.55178093]
[1747146106814,0.23432745,103320.0,103310.0,0.33884672]
[1747146107063,0.23432745,103320.0,103310.0,0.55179774]
[1747146107281,0.22464907,103320.0,103310.0,0.55179774]
[1747146107514,0.22464907,103320.0,103310.0,0.56147687]
[1747146107937,0.22464907,103320.0,103310.0,0.55179774]
[1747146108163,0.01171819,103320.0,103310.0,0.58083523]
[1747146108445,0.00204,103320.0,103310.0,0.58083523]
[1747146108634,0.01171782,103320.0,103310.0,1.22875159]
[1747146108839,0.01171782,103320.0,103310.0,0.85572923]
[1747146109059,0.03107412,103320.0,103310.0,0.61333523]
[1747146109279,0.02139583,103320.0,103310.0,0.61333523]
[1747146109499,0.02907402,103320.0,103310.0,0.88682123]
[1747146109803,0.02907412,103320.0,103310.0,0.61333523]
[1747146110009,0.02907412,103320.0,103310.0,0.71890123]
[1747146110010,0.02039583,103320.0,103310.0,0.71890123]
[1747146110241,0.03007402,103320.0,103310.0,0.61333523]
[1747146110453,0.03975231,103320.0,103310.0,0.61333476]
[1747146110667,0.03975231,103320.0,103310.0,0.58083476]
[1747146111661,0.04943079,103320.0,103310.0,0.58083476]
[1747146111877,0.03975231,103320.0,103310.0,0.58083476]
[1747146112096,0.02039583,103320.0,103310.0,0.58083476]
[1747146112348,0.03007412,103320.0,103310.0,0.58083476]
[1747146114120,0.02039583,103320.0,103310.0,0.58083476]
[1747146114324,0.0397524,103320.0,103310.0,0.58083476]
[1747146114525,0.03975231,103320.0,103310.0,0.58083476]
[1747146115247,0.03975231,103320.0,103310.0,0.35947476]
[1747146115457,0.55117758,103320.0,103310.0,0.11748672]
[1747146115669,0.58377758,103320.0,103310.0,0.31107882]
[1747146115884,0.58377758,103320.0,103310.0,0.02017732]
[1747146116318,0.02899721,103310.0,103300.0,0.58665228]
[1747146116526,0.02899721,103310.0,103300.0,1.12532168]
[1747146116728,0.02903721,103310.0,103300.0,1.13500156]
[1747146116941,4e-05,103310.0,103300.0,1.14472199]
[1747146117158,0.00971894,103310.0,103300.0,1.14472199]
[1747146117405,4e-05,103310.0,103300.0,0.70336199]
[1747146117632,4e-05,103310.0,103300.0,1.54472935]
[1747146117845,4e-05,103310.0,103300.0,2.20786435]
[1747146120109,4e-05,103310.0,103300.0,1.87065699]
[1747146120309,4e-05,103310.0,103300.0,2.20786435]
[1747146121280,0.0639,103350.0,103340.0,0.19351901]
[1747146121507,0.23167843,103350.0,103340.0,0.2927637]
[1747146121727,0.23167843,103350.0,103340.0,0.0973094]
[1747146121728,0.25310333,103350.0,103340.0,0.0973094]
[1747146122155,0.2343125,103340.0,103330.0,0.63479463]
[1747146122372,0.2343125,103340.0,103330.0,0.73210403]
[1747146122585,0.24330189,103340.0,103330.0,0.73210403]
[1747146123267,0.21290961,103330.0,103320.0,0.63476102]
[1747146123504,0.27560961,103330.0,103320.0,0.22068]
[1747146123771,0.27560961,103330.0,103320.0,0.41638475]
[1747146124001,0.27560961,103330.0,103320.0,0.22281139]
[1747146124244,0.61281697,103330.0,103320.0,0.00213139]
[1747146124480,0.62181219,103330.0,103320.0,0.00213139]
[1747146124708,0.62181219,103330.0,103310.0,0.19359068]
[1747146124709,0.23375202,103320.0,103310.0,0.19359068]
[1747146124932,0.23375202,103320.0,103310.0,0.19572314]
[1747146126051,0.20325202,103320.0,103310.0,0.19572314]
[1747146126278,0.20325202,103320.0,103310.0,0.19720118]
[1747146126524,0.23525202,103320.0,103310.0,0.19720118]
[1747146126772,0.23529202,103320.0,103310.0,0.19720118]
[1747146127302,0.06107505,103320.0,103310.0,0.20688069]
[1747146127542,0.06107505,103320.0,103310.0,0.22623942]
[1747146127785,4e-05,103320.0,103310.0,1.01043503]
[1747146127997,4e-05,103320.0,103310.0,2.21482403]
[1747146128222,4e-05,103320.0,103310.0,1.70724703]
[1747146128436,4e-05,103320.0,103310.0,1.37437303]
[1747146128924,4e-05,103320.0,103310.0,1.40637303]
[1747146130535,4e-05,103320.0,103310.0,1.2059075]
[1747146130749,0.01939601,103320.0,103310.0,0.89358767]
[1747146131169,4e-05,103320.0,103310.0,0.89358767]
[1747146131310,0.01939592,103320.0,103310.0,0.89358767]
[1747146131551,0.02907392,103320.0,103310.0,0.89358767]
[1747146131757,0.22264794,103320.0,103310.0,0.63451058]
[1747146131973,0.2323266,103320.0,103310.0,0.64418999]
[1747146132179,0.2323266,103320.0,103310.0,0.65386959]
[1747146132377,0.02907448,103320.0,103310.0,0.65386959]
[1747146132591,0.02907458,103320.0,103310.0,0.67322814]
[1747146132855,0.01939592,103320.0,103310.0,0.67322814]
[1747146133061,0.02907411,103320.0,103310.0,0.67322814]
[1747146133274,0.01939592,103320.0,103310.0,0.67322758]
[1747146133484,4e-05,103320.0,103310.0,1.02011388]
[1747146133701,4e-05,103320.0,103310.0,2.04823188]
[1747146133908,4e-05,103320.0,103310.0,1.71102452]
[1747146134117,4e-05,103320.0,103310.0,1.54703188]
[1747146134327,4e-05,103320.0,103310.0,1.53608888]
[1747146134932,4e-05,103320.0,103310.0,1.13181852]
[1747146136007,4e-05,103320.0,103310.0,1.49952588]
[1747146136398,4e-05,103320.0,103310.0,1.52952588]
[1747146137790,4e-05,103320.0,103310.0,1.86673324]
[1747146138236,0.03992081,103350.0,103340.0,0.56256515]
[1747146138237,0.00014571,103350.0,103340.0,0.56256515]
[1747146138442,0.00014571,103350.0,103340.0,1.21772191]
[1747146138650,0.00982072,103350.0,103340.0,1.22130554]
[1747146138860,0.00014571,103350.0,103340.0,1.22130554]
[1747146139131,0.0836156,103350.0,103340.0,0.75779953]
[1747146139339,0.0508961,103350.0,103340.0,0.89381478]
[1747146139547,0.00982081,103350.0,103340.0,1.23102214]
[1747146139924,0.00114571,103350.0,103340.0,1.23102214]
[1747146140419,0.00114571,103350.0,103340.0,0.65378223]
[1747146140654,0.04342072,103350.0,103340.0,0.89381468]
[1747146141107,0.05309592,103350.0,103340.0,0.89381468]
[1747146141331,0.05209582,103350.0,103340.0,0.89381468]
[1747146142014,0.00014571,103350.0,103340.0,1.26162204]
[1747146142239,0.00114571,103350.0,103340.0,1.23102204]
[1747146145525,0.00014571,103350.0,103340.0,1.23102204]
[1747146146001,0.00114571,103350.0,103340.0,1.23102204]
[1747146148551,0.00118571,103350.0,103340.0,1.23102204]
[1747146150871,0.00118571,103350.0,103340.0,1.45090204]
[1747146152307,0.00118571,103350.0,103340.0,1.09434223]
[1747146152533,0.0531361,103350.0,103340.0,1.11369478]
[1747146152748,0.0531362,103350.0,103340.0,1.11369478]
[1747146152961,0.27805337,103350.0,103340.0,0.63442893]
[1747146153172,0.27805394,103350.0,103340.0,0.00358363]
[1747146153411,0.27805394,103350.0,103340.0,0.19711953]
[1747146154605,0.26837855,103350.0,103340.0,0.19711953]
[1747146154810,0.26837855,103350.0,103340.0,0.00358363]
[1747146155003,0.26837855,103350.0,103340.0,0.19711953]
[1747146155639,0.26837855,103350.0,103340.0,0.00358363]
[1747146155847,0.26837855,103350.0,103340.0,0.19711953]
[1747146156465,1.02270185,103350.0,103340.0,0.00358363]
[1747146156702,1.1345521,103350.0,103340.0,0.00358363]
[1747146157400,1.14353729,103350.0,103340.0,0.00358363]
[1747146157633,1.49353729,103350.0,103340.0,0.00358363]
[1747146157867,1.49253729,103350.0,103340.0,0.00358363]
[1747146158082,0.27655084,103310.0,103300.0,0.2273327]
[1747146158327,0.27651084,103310.0,103300.0,0.20329138]
[1747146158574,0.0318,103310.0,103300.0,0.66964108]
[1747146158795,0.02903693,103310.0,103300.0,0.66964117]
[1747146159024,0.0633,103320.0,103310.0,0.21291074]
[1747146159274,0.00967801,103320.0,103310.0,0.21291074]
[1747146159551,0.00967801,103320.0,103310.0,0.23226872]
[1747146159787,0.0193563,103320.0,103310.0,0.23226872]
[1747146160013,0.0193562,103320.0,103310.0,0.23226872]
[1747146160477,0.00967801,103320.0,103310.0,0.23226872]
[1747146160706,0.01935386,103330.0,103320.0,0.56260814]
[1747146160961,0.25727964,103340.0,103330.0,0.22258677]
[1747146160962,0.0318,103340.0,103330.0,0.22258677]
[1747146161178,0.01949824,103340.0,103330.0,0.31989617]
[1747146161423,0.03885117,103340.0,103330.0,0.30054166]
[1747146161647,0.06127447,103340.0,103330.0,0.31021901]
[1747146161874,0.26448716,103340.0,103330.0,0.20323236]
[1747146162113,0.26448716,103340.0,103330.0,0.21290981]
[1747146162328,0.26448716,103340.0,103330.0,0.22258716]
[1747146162540,0.26748716,103340.0,103330.0,0.22258716]
[1747146162728,0.26748716,103340.0,103330.0,0.22258707]
[1747146162936,0.07395126,103340.0,103330.0,0.22258716]
[1747146163141,0.26748716,103340.0,103330.0,0.22258716]
[1747146163385,0.26948716,103340.0,103330.0,0.21290981]
[1747146163597,0.25981112,103340.0,103330.0,0.21290981]
[1747146164538,0.25981112,103340.0,103330.0,0.20323236]
[1747146164781,0.25981112,103340.0,103330.0,0.20323226]
[1747146164782,0.25013489,103340.0,103330.0,0.20323226]
[1747146165016,0.28073489,103340.0,103330.0,0.20323226]
[1747146165223,0.28073489,103340.0,103330.0,0.2129098]
[1747146165421,0.28073489,103340.0,103330.0,0.22258725]
[1747146165827,0.20323236,103330.0,103320.0,0.54325184]
[1747146166036,0.02903224,103330.0,103320.0,0.65023953]
[1747146166236,0.02903224,103330.0,103320.0,0.66959573]
[1747146166237,0.02903168,103330.0,103320.0,0.66959573]
[1747146166505,0.01935423,103330.0,103320.0,0.66959573]
[1747146166766,0.02903158,103330.0,103320.0,0.66959573]
[1747146167011,0.01935423,103330.0,103320.0,0.66959573]
[1747146167224,0.26605782,103340.0,103330.0,0.20323226]
[1747146167458,0.26605838,103340.0,103330.0,0.21290999]
[1747146167681,0.26605838,103340.0,103330.0,0.20323236]
[1747146167895,0.25638159,103340.0,103330.0,0.19355463]
[1747146168324,0.23545829,103340.0,103330.0,0.21294961]
[1747146168546,0.02149881,103340.0,103330.0,0.22262677]
[1747146168789,0.02149787,103340.0,103330.0,1.0068206]
[1747146169017,0.00214569,103340.0,103330.0,1.0068206]
[1747146169209,0.02153814,103340.0,103330.0,1.0068206]
[1747146169478,0.03121456,103340.0,103330.0,0.66961324]
[1747146169953,0.03321456,103340.0,103330.0,0.66961324]
[1747146170616,0.03321465,103340.0,103330.0,0.66961324]
[1747146171347,0.24610394,103340.0,103330.0,0.65993617]
[1747146171564,0.21707498,103340.0,103330.0,0.64058166]
[1747146171779,0.21707498,103340.0,103330.0,0.6502592]
[1747146172013,0.26182159,103340.0,103330.0,0.34004]
[1747146172227,0.26182159,103340.0,103330.0,4e-05]
[1747146172228,0.59902895,103340.0,103330.0,4e-05]
[1747146172688,0.26182159,103340.0,103330.0,4e-05]
[1747146174449,0.06828569,103340.0,103330.0,0.20327226]
[1747146174702,0.03321419,103340.0,103330.0,0.65714344]
[1747146174964,0.04289079,103340.0,103330.0,0.31993608]
[1747146175522,0.03321419,103340.0,103330.0,0.31993608]
[1747146175737,0.01386164,103340.0,103330.0,0.65714344]
[1747146175954,0.033214,103340.0,103330.0,0.31993608]
[1747146176167,0.04289042,103340.0,103330.0,0.31993608]
[1747146176825,0.04089042,103340.0,103330.0,0.31993608]
[1747146177047,0.03889042,103340.0,103330.0,0.31993608]
[1747146177271,0.03989042,103340.0,103330.0,0.31993608]
[1747146177636,0.05056702,103340.0,103330.0,0.31993608]
[1747146178872,0.23442772,103340.0,103330.0,0.3102592]
[1747146179085,0.2578514,103340.0,103330.0,0.3102592]
[1747146179296,0.05463871,103340.0,103330.0,0.31993665]
[1747146179515,0.03121541,103340.0,103330.0,0.32961381]
[1747146179966,0.03121541,103340.0,103330.0,0.32961391]
[1747146180190,0.03121484,103340.0,103330.0,0.33929098]
[1747146180392,0.03121484,103340.0,103330.0,0.33929107]
[1747146180820,0.00218569,103340.0,103330.0,0.67929051]
[1747146181038,0.00218569,103340.0,103330.0,0.71239051]
[1747146181458,0.00218569,103340.0,103330.0,1.04959787]
[1747146181676,0.00218569,103340.0,103330.0,1.08279787]
[1747146182521,0.00218569,103340.0,103330.0,2.19279387]
[1747146182747,0.00218569,103340.0,103330.0,2.60509387]
[1747146183594,0.00118569,103340.0,103330.0,2.60509387]
[1747146183823,0.00018569,103340.0,103330.0,2.60509387]
[1747146184491,0.00986164,103340.0,103330.0,2.28794751]
[1747146184706,0.00018569,103340.0,103330.0,2.28794751]
[1747146186052,0.00018569,103340.0,103330.0,1.87564751]
[1747146186711,0.00018569,103340.0,103330.0,2.24525487]
[1747146187389,0.00018569,103340.0,103330.0,1.84254751]
[1747146188513,0.00018569,103340.0,103330.0,1.87494751]
[1747146190249,0.00018569,103340.0,103330.0,2.21215487]
[1747146190448,0.00018569,103340.0,103330.0,2.24395487]
[1747146192086,0.00018569,103340.0,103330.0,2.65625487]
[1747146192349,0.0155964,103370.0,103360.0,0.56248207]
[1747146192563,0.0155964,103370.0,103360.0,2.34131883]
[1747146192816,0.0155964,103370.0,103360.0,1.25336347]
[1747146193030,0.0155964,103370.0,103360.0,1.18137047]
[1747146193450,0.0155964,103370.0,103360.0,1.19613187]
[1747146193656,0.02726963,103370.0,103360.0,1.19613187]
[1747146193873,0.02926963,103370.0,103360.0,1.19613187]
[1747146194107,0.03894305,103370.0,103360.0,0.89379287]
[1747146194328,0.04861675,103370.0,103360.0,0.89379287]
[1747146194542,0.03894305,103370.0,103360.0,0.89379287]
[1747146195145,0.02926954,103370.0,103360.0,0.89379287]
[1747146195389,0.0195964,103370.0,103360.0,0.89379287]
[1747146195563,0.02926954,103370.0,103360.0,0.89379287]
[1747146195777,0.0195964,103370.0,103360.0,0.89379287]
[1747146197005,0.0195964,103370.0,103360.0,1.18476587]
[1747146197212,0.0195964,103370.0,103360.0,1.52197323]
[1747146198044,0.0195964,103370.0,103360.0,1.18476587]
[1747146199555,0.0195964,103370.0,103360.0,1.14800887]
[1747146200624,0.03894305,103370.0,103360.0,1.14800887]
[1747146200848,0.0195964,103370.0,103360.0,0.89379287]
[1747146201299,0.02926963,103370.0,103360.0,0.89379287]
[1747146201623,0.0195964,103370.0,103360.0,0.89379287]
[1747146201848,0.02926963,103370.0,103360.0,0.89379287]
[1747146202064,0.09276963,103370.0,103360.0,0.87444407]
[1747146202295,0.63317079,103370.0,103360.0,0.5740014]
[1747146202515,0.29596343,103370.0,103360.0,0.76749985]
[1747146202976,0.29596343,103370.0,103360.0,0.77717458]
[1747146203206,0.0831364,103370.0,103360.0,0.89383278]
[1747146203430,0.0196364,103370.0,103360.0,1.23104014]
[1747146203859,0.02930954,103370.0,103360.0,0.89383278]
[1747146204073,0.03898287,103370.0,103360.0,0.89383278]
[1747146204600,0.02730954,103370.0,103360.0,0.89383278]
[1747146205002,0.0176364,103370.0,103360.0,0.89383278]
[1747146205413,0.0166364,103370.0,103360.0,0.92603278]
[1747146205659,0.0166364,103370.0,103360.0,2.15395214]
[1747146205907,0.0176364,103370.0,103360.0,2.15395214]
[1747146206122,0.0176364,103370.0,103360.0,2.58641299]
[1747146206337,0.01375248,103370.0,103360.0,2.58641299]
[1747146206595,0.00288392,103370.0,103360.0,2.58641299]
[1747146206824,0.00188392,103370.0,103360.0,2.58841299]
[1747146207039,0.00188392,103370.0,103360.0,2.59041299]
[1747146208465,6e-05,103380.0,103370.0,0.92990792]
[1747146208681,0.00054471,103380.0,103370.0,2.63393532]
[1747146208893,0.00054471,103380.0,103370.0,1.62583296]
[1747146209076,0.00054471,103380.0,103370.0,2.31485432]
[1747146210174,0.00054471,103380.0,103370.0,2.72715432]
[1747146210937,0.00054471,103380.0,103370.0,2.69687432]
[1747146211383,0.00054471,103380.0,103370.0,1.84619732]
[1747146211582,0.00054471,103380.0,103370.0,3.04849432]
[1747146212187,0.00054471,103380.0,103370.0,2.97379432]
[1747146212392,0.00058471,103380.0,103370.0,2.19974696]
[1747146212594,0.01992939,103380.0,103370.0,1.69452496]
[1747146212804,0.29323602,103380.0,103370.0,1.28091672]
[1747146213002,0.30290907,103380.0,103370.0,1.50895023]
[1747146213204,0.09010206,103380.0,103370.0,1.52829698]
[1747146213683,0.10944769,103380.0,103370.0,1.52829698]
[1747146213893,0.3029087,103380.0,103370.0,1.29059023]
[1747146214105,0.2835644,103380.0,103370.0,1.48956302]
[1747146214288,0.2845644,103380.0,103370.0,1.50891051]
[1747146214501,0.26521877,103380.0,103370.0,0.75234]
[1747146215002,0.26521877,103380.0,103370.0,0.94581973]
[1747146215138,0.26521877,103380.0,103370.0,0.95549371]
[1747146215365,0.26521877,103380.0,103370.0,0.97484139]
[1747146215579,0.26521877,103380.0,103370.0,0.98451509]
[1747146215840,0.26621877,103380.0,103370.0,0.98451509]
[1747146216048,0.26621877,103380.0,103370.0,0.57221509]
[1747146216257,0.26621877,103380.0,103370.0,0.56254139]
[1747146216474,0.26621877,103380.0,103370.0,0.5528676]
[1747146216678,0.26621877,103380.0,103370.0,0.54319371]
[1747146217107,0.26621877,103380.0,103370.0,0.5528676]
[1747146217531,0.26621877,103380.0,103370.0,0.22254139]
[1747146217942,0.26621877,103380.0,103370.0,4e-05]
[1747146219154,0.27628741,103370.0,103360.0,0.21014113]
[1747146219990,0.27628741,103370.0,103360.0,0.20046677]
[1747146220138,0.08284712,103370.0,103360.0,0.21014122]
[1747146220344,0.09252091,103370.0,103360.0,0.21981548]
[1747146220690,0.10219424,103370.0,103360.0,0.21981548]
[1747146221101,0.11186813,103370.0,103360.0,0.23406478]
[1747146221310,0.30534786,103370.0,103360.0,0.22439052]
[1747146221509,0.29567453,103370.0,103360.0,0.22439052]
[1747146221907,0.28600111,103370.0,103360.0,0.20504153]
[1747146222088,0.28600111,103370.0,103360.0,0.21471626]
[1747146222089,0.27632741,103370.0,103360.0,0.21471626]
[1747146222286,0.27632741,103370.0,103360.0,0.19536671]
[1747146222514,0.60390098,103370.0,103360.0,0.0142493]
[1747146222775,0.20317337,103360.0,103350.0,0.44096709]
[1747146222918,0.26597337,103360.0,103350.0,0.53827649]
[1747146223115,0.27564801,103360.0,103350.0,0.53827649]
[1747146223545,0.27564801,103360.0,103350.0,0.42161641]
[1747146223755,0.26597337,103360.0,103350.0,0.44096765]
[1747146223956,0.26597337,103360.0,103350.0,0.45064304]
[1747146224760,0.05005236,103340.0,103330.0,0.21290952]
[1747146225126,0.0307,103340.0,103330.0,0.31989608]
[1747146225308,0.06940566,103340.0,103330.0,0.31989608]
[1747146225957,0.26294156,103340.0,103330.0,0.31989608]
[1747146226197,0.25326599,103340.0,103330.0,0.0973094]
[1747146226420,0.22260879,103320.0,103310.0,0.42175161]
[1747146226635,0.24573041,103320.0,103310.0,0.31593509]
[1747146226853,0.27603041,103320.0,103310.0,0.51920679]
[1747146227073,0.27603041,103320.0,103310.0,0.53856562]
[1747146227287,0.27603041,103320.0,103310.0,0.54824485]
[1747146227728,0.27603041,103320.0,103310.0,0.4315769]
[1747146227937,0.0193561,103320.0,103310.0,0.45093507]
[1747146228184,0.02903448,103320.0,103310.0,0.45093507]
[1747146228375,0.03871296,103320.0,103310.0,0.45093507]
[1747146228594,0.203236,103330.0,103310.0,0.31040498]
[1747146228820,0.0631,103340.0,103330.0,0.20323236]
[1747146229035,0.08245218,103340.0,103330.0,0.22258734]
[1747146229245,0.01167595,103340.0,103330.0,0.32961381]
[1747146229471,0.0407051,103340.0,103330.0,0.32961381]
[1747146230135,0.0387051,103340.0,103330.0,0.32961381]
[1747146230344,0.0483818,103340.0,103330.0,0.32961381]
[1747146230557,0.0503818,103340.0,103330.0,0.32961381]
[1747146231021,0.23424241,103340.0,103330.0,0.31993674]
[1747146231229,0.23424241,103340.0,103330.0,0.329614]
[1747146231673,0.23424241,103340.0,103330.0,0.31993674]
[1747146231896,0.27718939,103340.0,103330.0,4e-05]
[1747146232564,0.61439675,103340.0,103330.0,4e-05]
[1747146232804,0.27718939,103340.0,103330.0,4e-05]
[1747146233044,0.00204,103340.0,103330.0,0.87759877]
[1747146233271,0.02139218,103340.0,103330.0,0.87566344]
[1747146233505,0.02139218,103340.0,103330.0,0.53845608]
[1747146233737,0.02139208,103340.0,103330.0,0.53845608]
[1747146233981,0.01071595,103340.0,103330.0,0.53845608]
[1747146234208,0.00104,103340.0,103330.0,1.24766344]
[1747146234428,4e-05,103340.0,103330.0,0.91145608]
[1747146234689,0.00971595,103340.0,103330.0,0.91145608]
[1747146235573,0.01939199,103340.0,103330.0,0.91145608]
[1747146235793,0.00971595,103340.0,103330.0,0.91145608]
[1747146236251,4e-05,103340.0,103330.0,0.91145608]
[1747146236478,4e-05,103340.0,103330.0,1.26718608]
[1747146236689,4e-05,103340.0,103330.0,1.60439344]
[1747146237488,4e-05,103340.0,103330.0,1.63709344]
[1747146238692,4e-05,103340.0,103330.0,1.29988608]
[1747146238917,4e-05,103340.0,103330.0,1.63709344]
[1747146239332,4e-05,103340.0,103330.0,1.29988608]
[1747146239597,4e-05,103340.0,103330.0,1.63709344]
[1747146239845,4e-05,103340.0,103330.0,1.60439344]
[1747146240275,4e-05,103340.0,103330.0,1.26718608]
[1747146240968,0.02906925,103340.0,103330.0,0.97155801]
[1747146241213,0.05259255,103340.0,103330.0,0.64320698]
[1747146241419,0.05259255,103340.0,103330.0,0.83680161]
[1747146241648,0.05259245,103340.0,103330.0,0.83680161]
[1747146242294,0.06226896,103340.0,103330.0,0.83680161]
[1747146242490,0.01939245,103340.0,103330.0,0.83680161]
[1747146242729,0.01939245,103340.0,103330.0,1.17400897]
[1747146242730,4e-05,103340.0,103330.0,1.17400897]
[1747146242962,4e-05,103340.0,103330.0,1.20600897]
[1747146243178,4e-05,103340.0,103330.0,1.23640897]
[1747146244215,4e-05,103340.0,103330.0,0.86880161]
[1747146244421,0.00971604,103340.0,103330.0,1.05452161]
[1747146244631,0.01939227,103340.0,103330.0,1.05452161]
[1747146244830,0.02906859,103340.0,103330.0,1.04484445]
[1747146245038,0.02906878,103340.0,103330.0,1.04484445]
[1747146245258,0.03874538,103340.0,103330.0,1.04484445]
[1747146245470,0.02906878,103340.0,103330.0,1.04484445]
[1747146246371,0.23228147,103340.0,103330.0,1.04484445]
[1747146246578,0.26448147,103340.0,103330.0,1.04484445]
[1747146246838,0.28640543,103340.0,103330.0,0.81676738]
[1747146247218,0.2767292,103340.0,103330.0,0.81676738]
[1747146247460,0.26705269,103340.0,103330.0,0.80709003]
[1747146248136,0.26705269,103340.0,103330.0,0.82644464]
[1747146248335,0.26705269,103340.0,103330.0,0.81676738]
[1747146248951,0.26785269,103340.0,103330.0,0.00104]
[1747146249156,0.60506005,103340.0,103330.0,0.00104]
[1747146249332,0.60506005,103340.0,103330.0,0.34104]
[1747146250955,0.26785269,103340.0,103330.0,0.34104]
[1747146251187,0.60506005,103340.0,103330.0,0.00104]
[1747146252730,0.2775292,103340.0,103330.0,0.00104]
[1747146253183,0.01939218,103340.0,103330.0,0.65125883]
[1747146253391,0.22260525,103340.0,103330.0,0.64158166]
[1747146253606,0.22260525,103340.0,103330.0,0.66093627]
[1747146253903,0.01939265,103340.0,103330.0,0.66093627]
[1747146254114,0.23228185,103340.0,103330.0,0.66093627]
[1747146254346,0.24195864,103340.0,103330.0,0.66093627]
[1747146254586,0.03874595,103340.0,103330.0,0.67061343]
[1747146255066,0.04842274,103340.0,103330.0,0.67061343]
[1747146255313,0.24195864,103340.0,103330.0,0.67061343]
[1747146255569,4e-05,103340.0,103330.0,1.04749786]
[1747146256035,0.00971595,103340.0,103330.0,0.7102905]
[1747146256266,4e-05,103340.0,103330.0,0.7102905]
[1747146256980,0.00971595,103340.0,103330.0,0.7102905]
[1747146257221,4e-05,103340.0,103330.0,1.08029786]
[1747146257458,4e-05,103340.0,103330.0,0.7430905]
[1747146257699,0.00971595,103340.0,103330.0,0.7102905]
[1747146257916,0.23228081,103340.0,103330.0,0.64158166]
[1747146258148,0.06934566,103340.0,103330.0,0.66093637]
[1747146258613,0.28350552,103340.0,103330.0,0.6512592]
[1747146259272,0.2738292,103340.0,103330.0,0.53459463]
[1747146259499,0.2738292,103340.0,103330.0,0.34104]